bitfinex-derivatives/quotes_BTCF0:USTF0_20240907
["timestamp","ask_amount","ask_price","bid_price","bid_amount"]
[1725679251643,0.33202619,53873.0,53872.0,0.269875]
[1725679251940,0.27666839,53873.0,53872.0,0.269875]
[1725679252439,0.1050578,53881.0,53876.0,0.092828]
[1725679252641,0.0824,53877.0,53876.0,0.282828]
[1725679252838,0.35990789,53877.0,53876.0,0.282828]
[1725679253542,0.27750789,53877.0,53876.0,0.282828]
[1725679253939,0.0553578,53880.0,53876.0,0.282828]
[1725679253940,0.0553578,53880.0,53879.0,0.092823]
[1725679254142,0.037,53880.0,53879.0,0.092823]
[1725679254338,0.31429771,53880.0,53879.0,0.092823]
[1725679256644,0.32725771,53880.0,53879.0,0.092823]
[1725679257344,0.33025771,53880.0,53879.0,0.093823]
[1725679257739,0.88705771,53880.0,53879.0,0.093823]
[1725679258048,0.96105656,53880.0,53879.0,0.093823]
[1725679258341,0.96105656,53880.0,53879.0,0.001]
[1725679258342,0.97987971,53880.0,53879.0,0.001]
[1725679258540,0.092834,53873.0,53872.0,0.14818257]
[1725679258743,0.092834,53873.0,53872.0,0.092835]
[1725679259042,0.41945939,53873.0,53872.0,0.092835]
[1725679259340,0.51285939,53873.0,53872.0,0.092835]
[1725679259742,0.7084439,53873.0,53872.0,0.092835]
[1725679259943,0.7114439,53873.0,53872.0,0.093835]
[1725679260333,0.7114439,53873.0,53872.0,0.001]
[1725679260334,0.58181153,53873.0,53872.0,0.001]
[1725679260535,0.092849,53864.0,53860.0,0.092854]
[1725679260736,0.11265321,53863.0,53858.0,0.19919701]
[1725679260933,0.11102857,53859.0,53858.0,0.282859]
[1725679261137,0.36340262,53863.0,53858.0,0.19]
[1725679261336,0.10195663,53862.0,53858.0,0.19]
[1725679261646,0.34465925,53861.0,53860.0,0.092856]
[1725679261847,0.07791663,53861.0,53860.0,0.092856]
[1725679262143,0.35544485,53861.0,53860.0,0.092856]
[1725679262551,0.39244485,53861.0,53860.0,0.092856]
[1725679263139,0.35658633,53861.0,53860.0,0.092856]
[1725679263842,0.36158633,53861.0,53860.0,0.093856]
[1725679266154,0.39744488,53861.0,53860.0,0.093856]
[1725679266745,0.33248822,53861.0,53860.0,0.093856]
[1725679267956,0.29548822,53861.0,53860.0,0.093856]
[1725679270556,0.33248822,53861.0,53860.0,0.001]
[1725679270751,0.42534222,53861.0,53860.0,0.05659602]
[1725679271051,0.42534222,53861.0,53860.0,0.093856]
[1725679271951,0.33248822,53861.0,53860.0,0.093856]
[1725679273443,0.33248822,53861.0,53860.0,0.33945202]
[1725679273656,0.33248822,53861.0,53860.0,0.283856]
[1725679273958,0.33248822,53861.0,53860.0,0.33945202]
[1725679275154,0.33248822,53861.0,53860.0,0.283856]
[1725679275655,0.33248822,53861.0,53860.0,0.33945202]
[1725679275956,0.33248822,53861.0,53860.0,0.283856]
[1725679279863,0.29548822,53861.0,53860.0,0.283856]
[1725679280059,0.29548822,53861.0,53860.0,0.33945202]
[1725679282664,0.29548822,53861.0,53860.0,0.14945202]
[1725679282965,0.29548822,53861.0,53860.0,0.093856]
[1725679283353,0.29548822,53861.0,53860.0,0.14945202]
[1725679284252,0.29548822,53861.0,53860.0,0.093856]
[1725679285760,0.29548822,53861.0,53860.0,0.283856]
[1725679286270,0.29548822,53861.0,53860.0,0.35794761]
[1725679286865,0.29548822,53861.0,53860.0,0.35802254]
[1725679287159,0.35098216,53861.0,53860.0,0.283856]
[1725679288163,0.29548822,53861.0,53860.0,0.283856]
[1725679289060,0.33248822,53861.0,53860.0,0.093856]
[1725679289264,1.26483212,53861.0,53860.0,0.0557025]
[1725679289455,0.092858,53859.0,53858.0,0.0557025]
[1725679289656,0.092863,53856.0,53855.0,0.10621556]
[1725679290070,0.42278981,53856.0,53855.0,0.10621556]
[1725679290371,0.49684924,53856.0,53855.0,0.03194621]
[1725679290662,0.49684924,53856.0,53855.0,0.07426935]
[1725679291272,0.49684924,53856.0,53854.0,0.07426935]
[1725679292164,0.42278981,53856.0,53854.0,0.07426935]
[1725679292861,0.42278981,53856.0,53853.0,0.19880045]
[1725679293162,0.05549935,53854.0,53853.0,0.19880045]
[1725679293565,0.38267973,53854.0,53853.0,0.19880045]
[1725679295563,0.38267973,53854.0,53852.0,0.07426935]
[1725679295869,0.092868,53853.0,53851.0,0.05564005]
[1725679296063,0.092868,53853.0,53850.0,0.14851305]
[1725679296064,0.09287,53852.0,53850.0,0.14851305]
[1725679296266,0.18434072,53851.0,53850.0,0.092873]
[1725679296462,0.14734072,53851.0,53850.0,0.092873]
[1725679296667,0.47682351,53851.0,53850.0,0.092873]
[1725679297159,0.38495251,53851.0,53850.0,0.092873]
[1725679297364,0.32948279,53851.0,53850.0,0.14851305]
[1725679297564,0.32648279,53851.0,53850.0,0.14851305]
[1725679299357,0.32648279,53851.0,53850.0,0.15251305]
[1725679300064,0.32648279,53851.0,53850.0,0.096873]
[1725679300468,0.32648279,53851.0,53850.0,0.15251305]
[1725679300864,0.32648279,53851.0,53850.0,0.096873]
[1725679302666,0.32648279,53851.0,53850.0,0.15251305]
[1725679302861,0.32648279,53851.0,53850.0,0.096873]
[1725679305365,0.32648279,53851.0,53850.0,0.15245786]
[1725679305672,0.32648279,53851.0,53850.0,0.15246001]
[1725679306174,0.32648279,53851.0,53850.0,0.096873]
[1725679307271,0.32648279,53851.0,53850.0,0.15245772]
[1725679307574,0.32648279,53851.0,53850.0,0.096873]
[1725679308375,0.32648279,53851.0,53850.0,0.15245772]
[1725679309078,0.32648279,53851.0,53850.0,0.286873]
[1725679309266,0.32648279,53851.0,53850.0,0.34245772]
[1725679309777,0.32648279,53851.0,53850.0,0.286873]
[1725679310472,0.32648279,53851.0,53850.0,0.34246316]
[1725679310672,0.32648279,53851.0,53850.0,0.286873]
[1725679312072,0.32648279,53851.0,53850.0,0.196873]
[1725679312264,0.29248279,53851.0,53850.0,0.196873]
[1725679313070,0.29248279,53851.0,53850.0,0.27114235]
[1725679313274,0.29248279,53851.0,53850.0,0.196873]
[1725679313774,0.29248279,53851.0,53850.0,0.27101794]
[1725679315369,0.29248279,53851.0,53850.0,0.196873]
[1725679318173,0.29248279,53851.0,53850.0,0.43107013]
[1725679318479,0.57482351,53851.0,53850.0,0.07822695]
[1725679318679,0.52010379,53851.0,53850.0,0.004]
[1725679319070,0.59341322,53851.0,53850.0,0.05967239]
[1725679319378,0.59341322,53851.0,53850.0,0.004]
[1725679319680,0.51935379,53851.0,53850.0,0.004]
[1725679320076,0.41935379,53851.0,53850.0,0.004]
[1725679321089,0.092877,53848.0,53847.0,0.02169487]
[1725679321379,0.092885,53843.0,53842.0,0.02169487]
[1725679321681,0.092888,53842.0,53839.0,0.092892]
[1725679321871,0.07395771,53840.0,53839.0,0.092892]
[1725679322289,0.27119937,53840.0,53839.0,0.092892]
[1725679322468,0.28415937,53840.0,53839.0,0.092892]
[1725679323170,0.28515937,53840.0,53839.0,0.106892]
[1725679323371,0.34057663,53840.0,53839.0,0.106892]
[1725679324076,0.34057663,53840.0,53839.0,0.13844924]
[1725679324379,0.28515937,53840.0,53839.0,0.13844924]
[1725679326469,0.28515937,53840.0,53839.0,0.23674924]
[1725679327983,0.0455,53853.0,53839.0,1.39394924]
[1725679327984,0.05541726,53850.0,53839.0,1.39394924]
[1725679328179,0.05541726,53853.0,53849.0,0.19]
[1725679328481,0.27724421,53850.0,53849.0,0.282875]
[1725679328682,0.06837726,53853.0,53850.0,0.092873]
[1725679329186,0.27724421,53851.0,53850.0,0.092873]
[1725679329386,0.01296,53851.0,53850.0,0.092873]
[1725679329878,0.2932046,53851.0,53850.0,0.092873]
[1725679330981,0.2932046,53851.0,53850.0,0.095873]
[1725679333379,0.2932046,53851.0,53850.0,0.12654717]
[1725679343894,0.2932046,53851.0,53850.0,0.22654717]
[1725679346998,0.34862186,53851.0,53850.0,0.22654717]
[1725679347695,0.01296,53851.0,53850.0,0.22654717]
[1725679347891,0.01296,53851.0,53850.0,0.44473743]
[1725679348096,0.01296,53851.0,53850.0,0.37064717]
[1725679349298,0.01296,53851.0,53850.0,0.44475725]
[1725679351003,0.01296,53851.0,53850.0,0.37064717]
[1725679351307,0.01296,53851.0,53850.0,0.44475725]
[1725679351603,0.01296,53851.0,53850.0,0.37064717]
[1725679351806,0.01296,53851.0,53850.0,0.4447596]
[1725679352318,0.01296,53851.0,53850.0,0.37064717]
[1725679353594,0.01296,53851.0,53850.0,0.44478866]
[1725679354506,0.01296,53851.0,53850.0,0.37064717]
[1725679354706,0.01296,53851.0,53850.0,0.37972187]
[1725679361116,0.06837726,53851.0,53850.0,0.37972187]
[1725679364314,0.01296,53851.0,53850.0,0.37972187]
[1725679364908,0.06847532,53851.0,53850.0,0.37972187]
[1725679369521,0.06847532,53851.0,53850.0,0.32972187]
[1725679369721,0.06847532,53851.0,53850.0,0.28232187]
[1725679370309,0.01296,53851.0,53850.0,0.28232187]
[1725679370510,0.06849781,53851.0,53850.0,0.28232187]
[1725679370721,0.01296,53851.0,53850.0,0.28232187]
[1725679370919,0.06849446,53851.0,53850.0,0.28232187]
[1725679372417,0.01296,53851.0,53850.0,0.28232187]
[1725679373711,0.01296,53851.0,53850.0,0.37502602]
[1725679374219,0.01296,53851.0,53850.0,0.51652061]
[1725679375708,0.01296,53851.0,53850.0,0.51664315]
[1725679376215,0.06849446,53851.0,53850.0,0.42381646]
[1725679376522,0.06849446,53851.0,53850.0,0.51666062]
[1725679376708,0.06849446,53851.0,53850.0,0.42381646]
[1725679376913,0.06849446,53851.0,53850.0,0.51666062]
[1725679377212,0.06849446,53851.0,53850.0,0.42381646]
[1725679378217,0.01296,53851.0,53850.0,0.42381646]
[1725679378817,0.06854179,53851.0,53850.0,0.42381646]
[1725679380427,0.06854179,53851.0,53850.0,0.28232187]
[1725679380628,0.06854179,53851.0,53850.0,0.42381781]
[1725679384219,0.06854179,53851.0,53850.0,0.42381552]
[1725679384914,0.01296,53851.0,53850.0,1.67376852]
[1725679385124,0.00089646,53858.0,53850.0,1.10315991]
[1725679385323,0.25243288,53867.0,53861.0,0.092854]
[1725679385324,0.07395771,53862.0,53861.0,0.092854]
[1725679385526,0.07395771,53863.0,53860.0,0.19283781]
[1725679385827,0.36611143,53863.0,53862.0,0.1]
[1725679386026,0.08691771,53863.0,53862.0,0.1]
[1725679386222,0.08691771,53863.0,53862.0,0.17423468]
[1725679386223,0.01296,53863.0,53862.0,0.17423468]
[1725679386522,0.29050425,53863.0,53862.0,0.17423468]
[1725679386729,0.29050425,53863.0,53862.0,0.26708768]
[1725679387228,0.29050425,53863.0,53862.0,0.192853]
[1725679388029,0.30150425,53863.0,53862.0,0.193853]
[1725679389127,0.30150425,53863.0,53862.0,0.26802227]
[1725679389429,0.30150425,53863.0,53862.0,0.193853]
[1725679389733,0.30150425,53863.0,53862.0,0.26801995]
[1725679390325,0.30150425,53863.0,53862.0,0.193853]
[1725679390523,0.30150425,53863.0,53862.0,0.85298395]
[1725679390823,0.3265,53875.0,53862.0,1.53246039]
[1725679391024,0.01296,53875.0,53874.0,0.192832]
[1725679391529,0.29077586,53875.0,53874.0,0.192832]
[1725679393630,0.29877586,53875.0,53874.0,0.193832]
[1725679399235,0.29877586,53875.0,53874.0,0.22565154]
[1725679399931,0.29077586,53875.0,53874.0,0.22465154]
[1725679400136,0.29777586,53875.0,53874.0,0.22565154]
[1725679400835,0.29577586,53875.0,53874.0,0.22465154]
[1725679402036,0.11955771,53887.0,53886.0,0.092811]
[1725679402243,0.11955771,53887.0,53886.0,0.192811]
[1725679402434,0.4126822,53887.0,53886.0,0.192811]
[1725679402829,0.4126822,53887.0,53886.0,0.1]
[1725679403135,0.092823,53880.0,53874.0,0.12465054]
[1725679403335,0.139624,53879.0,53874.0,0.22465054]
[1725679403538,0.43164697,53879.0,53874.0,0.22465054]
[1725679403837,0.092825,53878.0,53874.0,0.03181954]
[1725679404140,0.27907297,53877.0,53874.0,0.092831]
[1725679404335,0.32477297,53877.0,53874.0,0.092831]
[1725679404636,0.0466,53876.0,53874.0,0.092831]
[1725679404935,0.27769716,53875.0,53874.0,0.092831]
[1725679405429,0.29064716,53875.0,53874.0,0.092831]
[1725679406941,0.29164716,53875.0,53874.0,0.093831]
[1725679408140,0.29164716,53875.0,53874.0,0.193831]
[1725679408339,0.29164716,53875.0,53874.0,0.2246282]
[1725679410148,0.29164716,53875.0,53861.0,0.17053749]
[1725679410149,0.99164716,53875.0,53861.0,0.07413749]
[1725679410337,0.99164716,53875.0,53858.0,0.03108738]
[1725679410338,0.1,53865.0,53858.0,0.03108738]
[1725679410640,0.58702218,53874.0,53858.0,0.1]
[1725679410641,0.27679022,53864.0,53858.0,0.1]
[1725679411037,0.27679022,53865.0,53858.0,0.1]
[1725679411241,0.092851,53864.0,53858.0,0.1]
[1725679411437,0.2796804,53863.0,53858.0,0.1]
[1725679411644,0.01295,53865.0,53855.0,0.1]
[1725679411947,0.2796804,53863.0,53853.0,0.19]
[1725679412360,0.08690771,53863.0,53853.0,0.19]
[1725679412564,0.27827265,53862.0,53853.0,0.19]
[1725679412962,0.09286,53858.0,53853.0,0.19]
[1725679413159,0.10581,53858.0,53853.0,0.19]
[1725679413463,0.27827265,53857.0,53853.0,0.195]
[1725679413653,0.29122265,53857.0,53853.0,0.195]
[1725679415470,0.38408365,53857.0,53853.0,0.195]
[1725679415957,0.38508365,53857.0,53853.0,0.22560283]
[1725679416359,0.092863,53856.0,53853.0,0.22560283]
[1725679416562,0.105813,53856.0,53853.0,0.22560283]
[1725679416764,0.2775487,53855.0,53853.0,0.22560283]
[1725679417359,0.2904987,53855.0,53853.0,0.22560283]
[1725679418860,0.3833637,53855.0,53853.0,0.22060283]
[1725679419061,0.3833637,53855.0,53853.0,0.22560283]
[1725679419761,0.3833637,53855.0,53853.0,0.22060283]
[1725679420069,0.3833637,53855.0,53853.0,0.22560283]
[1725679422671,0.092866,53854.0,53853.0,0.22560283]
[1725679422969,0.37157264,53854.0,53853.0,0.22560283]
[1725679423180,0.38452264,53854.0,53853.0,0.22560283]
[1725679432073,0.38452264,53854.0,53853.0,0.13560283]
[1725679439475,0.38452264,53854.0,53853.0,0.20974032]
[1725679439979,0.38452264,53854.0,53853.0,0.20978186]
[1725679440177,0.38452264,53854.0,53853.0,0.36976323]
[1725679443777,0.38452264,53854.0,53853.0,0.26976323]
[1725679443979,0.45848035,53854.0,53853.0,0.03560283]
[1725679444182,0.38452264,53854.0,53853.0,0.03560283]
[1725679452186,0.45859968,53854.0,53853.0,0.03560283]
[1725679453478,0.38452264,53854.0,53853.0,0.03560283]
[1725679454088,0.45859682,53854.0,53853.0,0.03560283]
[1725679455181,0.38452264,53854.0,53853.0,0.03560283]
[1725679455688,0.38452264,53854.0,53853.0,0.10990156]
[1725679455890,0.38452264,53854.0,53853.0,0.03560283]
[1725679456480,1.15878452,53854.0,53853.0,0.05572532]
[1725679456793,0.185746,53850.0,53849.0,0.05572532]
[1725679456986,0.185746,53850.0,53846.0,0.07429892]
[1725679456987,0.31024097,53850.0,53846.0,0.05572532]
[1725679457186,0.09288,53846.0,53845.0,0.05572532]
[1725679457488,0.092882,53845.0,53844.0,0.05572532]
[1725679457687,0.26686032,53845.0,53844.0,0.05572532]
[1725679457896,0.54370047,53845.0,53844.0,0.05572532]
[1725679458398,0.54765047,53845.0,53844.0,0.05572532]
[1725679458586,0.54765047,53845.0,53843.0,0.05572532]
[1725679458587,0.092884,53844.0,53843.0,0.05572532]
[1725679458893,0.37138429,53844.0,53843.0,0.05572532]
[1725679459095,0.38433429,53844.0,53843.0,0.05572532]
[1725679459495,0.092885,53843.0,53842.0,0.05572532]
[1725679459696,0.01295,53843.0,53840.0,0.07429892]
[1725679459887,0.09289,53840.0,53839.0,0.12741821]
[1725679460083,0.09289,53840.0,53839.0,0.07177122]
[1725679460287,0.38435903,53840.0,53839.0,0.07177122]
[1725679461584,0.38535903,53840.0,53839.0,0.07177122]
[1725679462882,0.38435903,53840.0,53839.0,0.07177122]
[1725679463082,0.38535903,53840.0,53839.0,0.07177122]
[1725679463889,0.38535903,53840.0,53839.0,0.02537122]
[1725679464088,0.38535903,53840.0,53835.0,0.0945]
[1725679464089,0.092895,53838.0,53835.0,0.0945]
[1725679464289,0.105845,53838.0,53835.0,0.0945]
[1725679464501,0.27838505,53837.0,53835.0,0.0945]
[1725679464894,0.29133505,53837.0,53835.0,0.0945]
[1725679466191,0.29133505,53837.0,53835.0,0.0975]
[1725679466987,0.29233505,53837.0,53835.0,0.0975]
[1725679467501,0.29233505,53837.0,53835.0,0.12267875]
[1725679469491,0.38523105,53837.0,53835.0,0.12267875]
[1725679470999,0.38523105,53837.0,53836.0,0.1]
[1725679472806,0.38523105,53837.0,53836.0,0.103]
[1725679477309,0.38523105,53837.0,53836.0,0.15864699]
[1725679478194,0.38523105,53837.0,53836.0,0.103]
[1725679478706,0.38523105,53837.0,53836.0,0.003]
[1725679480410,0.38523105,53837.0,53836.0,0.05864699]
[1725679480602,0.38523105,53837.0,53836.0,0.003]
[1725679481199,0.38523105,53837.0,53836.0,0.05857035]
[1725679481703,0.38523105,53837.0,53836.0,0.003]
[1725679482110,0.38523105,53837.0,53836.0,0.05858547]
[1725679482513,0.38523105,53837.0,53836.0,0.003]
[1725679483506,0.38523105,53837.0,53836.0,0.07729892]
[1725679484503,0.38523105,53837.0,53836.0,0.003]
[1725679489517,0.45920937,53837.0,53836.0,0.003]
[1725679490116,0.36631337,53837.0,53836.0,0.095897]
[1725679490314,0.29233505,53837.0,53836.0,0.2374279]
[1725679492912,0.29233505,53837.0,53836.0,0.34863414]
[1725679493311,0.29233505,53837.0,53836.0,1.59877114]
[1725679493511,0.07397832,53851.0,53836.0,1.5669248]
[1725679493818,0.27774863,53853.0,53852.0,0.09287]
[1725679494011,0.27774863,53853.0,53852.0,0.17991]
[1725679494212,0.01296,53853.0,53852.0,0.41418508]
[1725679494417,0.29070863,53853.0,53852.0,0.17991]
[1725679494919,0.01296,53853.0,53852.0,0.17991]
[1725679495217,0.29013901,53853.0,53852.0,0.17991]
[1725679495718,0.29013901,53853.0,53852.0,0.25402581]
[1725679496111,0.29813901,53853.0,53852.0,0.25402581]
[1725679496619,0.29813901,53853.0,53852.0,0.17991]
[1725679498625,0.29813901,53853.0,53852.0,0.23543819]
[1725679499524,0.29813901,53853.0,53852.0,0.26035872]
[1725679501423,0.29813901,53853.0,53852.0,0.20483053]
[1725679501726,0.29813901,53853.0,53852.0,0.26035872]
[1725679502319,0.29813901,53853.0,53852.0,0.20483053]
[1725679511429,0.29713901,53853.0,53852.0,0.20483053]
[1725679511818,0.29713901,53853.0,53852.0,0.25153053]
[1725679513531,0.29713901,53853.0,53852.0,0.30705872]
[1725679514626,0.29713901,53853.0,53852.0,0.25153053]
[1725679517737,0.29713901,53853.0,53852.0,0.32564634]
[1725679518526,0.29713901,53853.0,53852.0,0.25153053]
[1725679522633,0.29713901,53853.0,53852.0,0.38580878]
[1725679522828,0.39000701,53853.0,53852.0,0.25921468]
[1725679523031,0.39000701,53853.0,53852.0,0.11772875]
[1725679523637,0.44532086,53853.0,53852.0,0.14149019]
[1725679525028,0.35245286,53853.0,53852.0,0.24149014]
[1725679525834,0.29713901,53853.0,53852.0,0.24149014]
[1725679528735,0.29713901,53853.0,53852.0,0.24148586]
[1725679536155,0.29713901,53853.0,53852.0,0.33435586]
[1725679537853,0.05531385,53859.0,53852.0,0.97077625]
[1725679538151,0.05552932,53860.0,53859.0,0.079898]
[1725679538457,0.05552932,53861.0,53859.0,0.36868386]
[1725679538651,0.06848932,53861.0,53860.0,0.19281467]
[1725679539049,0.34866713,53861.0,53860.0,0.19281467]
[1725679539244,0.29313781,53861.0,53860.0,0.1]
[1725679539753,0.34866713,53861.0,53860.0,0.1]
[1725679539942,0.30713781,53861.0,53860.0,0.101]
[1725679540250,0.30713781,53861.0,53860.0,0.193856]
[1725679541457,0.36266713,53861.0,53860.0,0.193856]
[1725679541648,0.30713781,53861.0,53860.0,0.239256]
[1725679558261,0.30713781,53861.0,53860.0,0.33207067]
[1725679558568,0.30713781,53861.0,53860.0,0.47352985]
[1725679558768,0.30713781,53861.0,53860.0,0.33207067]
[1725679559159,0.30713781,53861.0,53860.0,0.47352738]
[1725679560260,0.30713781,53861.0,53860.0,0.38071271]
[1725679562156,0.29713781,53861.0,53860.0,0.37971271]
[1725679564963,0.29713781,53861.0,53860.0,0.38904291]
[1725679565874,0.29713781,53861.0,53860.0,0.50046515]
[1725679566970,0.29713781,53861.0,53860.0,0.38904291]
[1725679567171,0.29713781,53861.0,53860.0,0.56121593]
[1725679567571,0.29713781,53861.0,53860.0,0.56121222]
[1725679570067,0.05553349,53872.0,53861.0,0.649814]
[1725679570364,0.27816555,53871.0,53870.0,0.20416421]
[1725679570570,0.27816555,53871.0,53870.0,0.3342923]
[1725679570769,0.01296,53872.0,53871.0,0.092837]
[1725679570963,0.01296,53872.0,53871.0,0.34554019]
[1725679571280,0.29669211,53872.0,53871.0,0.34554019]
[1725679571574,0.29669211,53872.0,53871.0,0.2342903]
[1725679572064,0.30569211,53872.0,53871.0,0.2352903]
[1725679572467,0.30569211,53872.0,53871.0,0.23526119]
[1725679574371,0.30569211,53872.0,53871.0,0.32784775]
[1725679574584,0.30569211,53872.0,53871.0,0.35086941]
[1725679575481,0.30569211,53872.0,53871.0,0.20944522]
[1725679576569,0.30569211,53872.0,53871.0,0.11685866]
[1725679577067,0.30569211,53872.0,53871.0,0.19091015]
[1725679577380,0.30569211,53872.0,53871.0,0.02402166]
[1725679578181,0.29169211,53872.0,53871.0,0.02302166]
[1725679578381,0.29969211,53872.0,53871.0,0.001]
[1725679578866,0.29969211,53872.0,53871.0,0.05654324]
[1725679581175,1.55657211,53872.0,53867.0,0.0555503]
[1725679581384,0.092847,53865.0,53864.0,0.0555503]
[1725679581579,0.092847,53865.0,53863.0,0.0555503]
[1725679581880,0.0937,53864.0,53863.0,0.0555503]
[1725679582269,0.37278981,53864.0,53863.0,0.0555503]
[1725679582669,0.37278981,53864.0,53862.0,0.0555503]
[1725679582870,0.38574981,53864.0,53861.0,0.1484043]
[1725679583072,0.38574981,53864.0,53862.0,0.092852]
[1725679583875,0.38574981,53864.0,53863.0,0.092851]
[1725679584678,0.34044981,53864.0,53863.0,0.092851]
[1725679587081,0.34644981,53864.0,53863.0,0.093851]
[1725679588173,0.34644981,53864.0,53863.0,0.1494013]
[1725679589884,0.34644981,53864.0,53863.0,0.093851]
[1725679590087,0.34644981,53864.0,53863.0,0.14940335]
[1725679590273,0.34644981,53864.0,53863.0,0.093851]
[1725679591590,0.29804981,53864.0,53863.0,0.093851]
[1725679592076,0.01896,53864.0,53863.0,0.093851]
[1725679592277,0.40055372,53877.0,53863.0,0.093851]
[1725679592278,0.3265,53877.0,53872.0,0.092835]
[1725679592489,0.3265,53877.0,53876.0,0.1]
[1725679592490,0.01296,53877.0,53876.0,0.1]
[1725679592686,0.05553349,53880.0,53876.0,0.1]
[1725679592894,0.27873868,53877.0,53876.0,0.1]
[1725679593086,0.27663279,53879.0,53876.0,0.1]
[1725679593394,0.012,53877.0,53876.0,0.1]
[1725679593891,0.29048279,53877.0,53876.0,0.1]
[1725679594088,0.27848279,53877.0,53876.0,0.1]
[1725679594289,0.27848279,53877.0,53876.0,0.101]
[1725679595888,0.27848279,53877.0,53876.0,0.12312108]
[1725679596092,0.27948279,53877.0,53876.0,0.12412108]
[1725679597385,0.27948279,53877.0,53876.0,0.02412108]
[1725679597792,0.29059279,53877.0,53876.0,0.02412108]
[1725679602201,0.34612628,53877.0,53876.0,0.02412108]
[1725679602499,0.29059279,53877.0,53876.0,0.02412108]
[1725679603601,0.29559279,53877.0,53876.0,0.02412108]
[1725679603810,0.35112628,53877.0,53876.0,0.02412108]
[1725679604009,0.29559279,53877.0,53876.0,0.02412108]
[1725679604319,0.35112628,53877.0,53876.0,0.02412108]
[1725679604608,0.38807079,53877.0,53876.0,0.02412108]
[1725679605601,0.29559279,53877.0,53876.0,0.02412108]
[1725679606004,0.3879948,53877.0,53876.0,0.02412108]
[1725679606410,0.32568609,53877.0,53876.0,0.02412108]
[1725679607611,0.32568609,53877.0,53876.0,0.11694908]
[1725679607812,0.32568609,53877.0,53876.0,0.21694908]
[1725679609916,0.38803851,53877.0,53876.0,0.21694908]
[1725679612614,0.29559279,53877.0,53876.0,0.21694908]
[1725679614410,0.35106233,53877.0,53876.0,0.21694908]
[1725679614810,0.34506233,53877.0,53876.0,0.21594908]
[1725679615011,0.35006233,53877.0,53876.0,0.21694908]
[1725679615421,0.29459279,53877.0,53876.0,0.21694908]
[1725679615613,0.28959279,53877.0,53876.0,0.21694908]
[1725679615808,0.29359279,53877.0,53876.0,0.21694908]
[1725679618315,0.29359279,53877.0,53876.0,0.27249048]
[1725679619409,0.36755218,53877.0,53876.0,0.27249048]
[1725679619810,0.32368604,53877.0,53876.0,0.21694908]
[1725679621426,0.44080129,53877.0,53876.0,0.21694908]
[1725679621618,0.35953877,53877.0,53876.0,0.21694908]
[1725679622025,0.32368604,53877.0,53876.0,0.21694908]
[1725679622218,0.3595384,53877.0,53876.0,0.21694908]
[1725679622719,0.44080092,53877.0,53876.0,0.21694908]
[1725679623116,0.32368604,53877.0,53876.0,0.21694908]
[1725679624221,0.32368604,53877.0,53876.0,0.11694908]
[1725679624417,0.35953844,53877.0,53876.0,0.11694908]
[1725679624937,0.44080023,53877.0,53876.0,0.11694908]
[1725679625925,0.40494783,53877.0,53876.0,0.11694908]
[1725679626125,0.40494755,53877.0,53876.0,0.11694908]
[1725679626325,0.44079996,53877.0,53876.0,0.11694908]
[1725679627016,0.35953817,53877.0,53876.0,0.11694908]
[1725679627522,0.32468576,53877.0,53876.0,0.11694908]
[1725679627726,0.29459279,53877.0,53876.0,0.11694908]
[1725679630231,0.29459279,53877.0,53876.0,0.3509477]
[1725679630525,0.29459279,53877.0,53876.0,0.25837869]
[1725679631224,0.29459279,53877.0,53876.0,0.25837437]
[1725679632218,0.29459279,53877.0,53876.0,0.35115948]
[1725679632825,0.35019613,53877.0,53876.0,0.35115948]
[1725679633023,0.29459279,53877.0,53876.0,0.35115948]
[1725679633220,0.29459279,53877.0,53876.0,0.20973419]
[1725679633420,0.29459279,53877.0,53876.0,0.25837741]
[1725679634532,0.24816338,53877.0,53876.0,0.25837741]
[1725679634729,0.27825247,53877.0,53876.0,0.11694908]
[1725679635732,0.24816338,53877.0,53876.0,0.11694908]
[1725679636132,0.34080487,53877.0,53876.0,0.11694908]
[1725679637738,0.24816338,53877.0,53876.0,0.17260588]
[1725679637931,0.24816338,53877.0,53876.0,0.11694908]
[1725679638345,0.01796,53877.0,53876.0,0.11694908]
[1725679639544,0.01796,53877.0,53876.0,0.17256429]
[1725679639945,0.01796,53877.0,53876.0,0.27256429]
[1725679640346,0.09202193,53877.0,53876.0,0.27256429]
[1725679642248,0.01796,53877.0,53876.0,0.27256429]
[1725679642743,0.01796,53877.0,53876.0,0.35836208]
[1725679644246,0.01796,53877.0,53876.0,0.25836208]
[1725679644450,0.01796,53877.0,53876.0,0.35836208]
[1725679644646,0.01796,53877.0,53876.0,0.46961197]
[1725679645250,0.01796,53877.0,53876.0,0.46961122]
[1725679646949,0.38202446,53888.0,53878.0,0.092825]
[1725679647154,0.08124488,53887.0,53885.0,0.05557936]
[1725679647355,0.2911625,53887.0,53885.0,0.05557759]
[1725679647547,0.092811,53886.0,53885.0,0.05557759]
[1725679647953,0.3710235,53886.0,53885.0,0.05557759]
[1725679648154,0.3839735,53886.0,53885.0,0.05557759]
[1725679649350,0.43949796,53886.0,53885.0,0.05557759]
[1725679650855,0.43949796,53886.0,53885.0,0.05657759]
[1725679651555,0.43949796,53886.0,53885.0,0.001]
[1725679651556,0.3839735,53886.0,53885.0,0.001]
[1725679652362,0.3839735,53886.0,53885.0,0.05658687]
[1725679652572,1.52194443,53886.0,53880.0,0.07410582]
[1725679652878,0.092823,53879.0,53878.0,0.07410582]
[1725679653265,0.37203768,53879.0,53878.0,0.07410582]
[1725679653470,0.38498768,53879.0,53878.0,0.07410582]
[1725679653873,0.38398768,53879.0,53878.0,0.07410582]
[1725679654876,0.38598768,53879.0,53878.0,0.07510582]
[1725679656468,0.38598768,53879.0,53878.0,0.001]
[1725679656879,0.38598768,53879.0,53878.0,0.07515558]
[1725679657069,0.38598768,53879.0,53878.0,0.07515467]
[1725679657380,0.38598768,53879.0,53878.0,0.001]
[1725679657574,0.38598768,53879.0,53878.0,0.07516591]
[1725679657878,0.46004961,53879.0,53878.0,0.001]
[1725679658082,0.38598768,53879.0,53878.0,0.001]
[1725679664074,0.38598768,53879.0,53878.0,0.05662598]
[1725679664478,0.38598768,53879.0,53878.0,0.001]
[1725679664877,0.44160171,53879.0,53878.0,0.07516591]
[1725679665478,0.44160171,53879.0,53878.0,0.001]
[1725679665978,0.44160171,53879.0,53878.0,0.07518076]
[1725679666183,0.44160171,53879.0,53878.0,0.07518105]
[1725679668685,0.38598768,53879.0,53878.0,0.001]
[1725679672985,0.46724129,53879.0,53878.0,0.001]
[1725679673689,0.38598768,53879.0,53878.0,0.001]
[1725679674390,0.49733113,53879.0,53878.0,0.001]